bitfinex/quotes_SOLUSD_20220227
["timestamp","ask_amount","ask_price","bid_price","bid_amount"]
[1645999551291,1.51848504,85.299,85.216,46.9079]
[1645999551490,16.92,85.3,85.216,46.9079]
[1645999551491,1.77283881,85.297,85.216,46.9079]
[1645999551690,30.4604,85.298,85.217,29.47847501]
[1645999551892,30.4604,85.298,85.216,46.9079]
[1645999552091,117.6,85.296,85.205,117.6]
[1645999552392,117.6,85.294,85.181,22.8222]
[1645999552590,117.6,85.279,85.179,2.74678921]
[1645999552794,1.72767988,85.276,85.179,2.74678921]
[1645999552989,54.8664,85.278,85.18,29.66736715]
[1645999552990,1.77330906,85.269,85.18,29.66736715]
[1645999553189,30.4042,85.268,85.181,2.58072714]
[1645999553390,24.4042,85.268,85.182,34.58884719]
[1645999553590,24.4042,85.268,85.184,3.12492676]
[1645999553793,24.4042,85.268,85.186,117.6]
[1645999553990,24.4042,85.268,85.188,117.6]
[1645999554189,24.4042,85.268,85.191,2.99355766]
[1645999554390,24.4042,85.268,85.194,38.63299117]
[1645999554592,24.4042,85.268,85.195,123.6]
[1645999554789,24.4042,85.268,85.196,2.44908094]
[1645999554991,24.5226,85.278,85.198,2.4658549]
[1645999555191,24.5226,85.278,85.2,117.6]
[1645999555393,24.5226,85.278,85.202,117.6]
[1645999555590,24.5226,85.278,85.205,3.09776192]
[1645999555791,24.5226,85.278,85.209,117.6]
[1645999555990,24.5226,85.278,85.211,117.6]
[1645999556193,24.5226,85.278,85.213,117.6]
[1645999556394,24.5226,85.278,85.214,123.6]
[1645999556594,24.5226,85.278,85.208,34.92891546]
[1645999556595,6.0,85.277,85.208,34.92891546]
[1645999556799,7.66112647,85.277,85.208,34.92891546]
[1645999558200,6.0,85.277,85.208,34.92891546]
[1645999558398,24.5226,85.278,85.208,34.92891546]
[1645999558999,6.0,85.277,85.208,34.92891546]
[1645999563418,6.0,85.277,85.206,22.6601]
[1645999563618,2.74678921,85.276,85.206,22.6601]
[1645999563818,6.0,85.275,85.206,22.6601]
[1645999564020,6.0,85.275,85.157,49.9554]
[1645999564021,117.6,85.274,85.151,60.13888608]
[1645999564218,16.92,85.26,85.152,53.3818]
[1645999564519,1.65853052,85.258,85.154,117.6]
[1645999564720,6.0,85.257,85.155,6.0]
[1645999564919,6.0,85.257,85.156,117.6]
[1645999565119,10.15771523,85.257,85.158,117.6]
[1645999565317,2.74678921,85.256,85.16,117.6]
[1645999565520,6.0,85.255,85.16,117.6]
[1645999565818,16.92,85.25,85.16,117.6]
[1645999566017,16.92,85.25,85.155,6.0]
[1645999566018,1.67655418,85.248,85.162,117.6]
[1645999566217,6.0,85.247,85.164,117.6]
[1645999566619,6.0,85.247,85.166,149.90453254]
[1645999567018,6.0,85.248,85.168,117.6]
[1645999567217,6.0,85.248,85.17,117.6]
[1645999567419,6.0,85.248,85.173,2.28224606]
[1645999567618,6.0,85.264,85.176,2.37906245]
[1645999567819,6.0,85.264,85.18,117.6]
[1645999568019,6.0,85.264,85.182,117.6]
[1645999568221,16.92,85.27,85.184,117.6]
[1645999568417,6.0,85.269,85.185,6.0]
[1645999568617,8.74678921,85.269,85.185,6.0]
[1645999569019,2.74678921,85.268,85.185,8.80092714]
[1645999569219,1.36782064,85.309,85.187,2.64849309]
[1645999569519,2.74678921,85.292,85.19,2.32276275]
[1645999569719,16.92,85.3,85.194,117.6]
[1645999569920,1.73136128,85.307,85.197,2.70559005]
[1645999570119,1.73136128,85.307,85.2,2.86157418]
[1645999570320,55.16089691,85.306,85.203,2.30361238]
[1645999570521,1.43687703,85.305,85.205,117.6]
[1645999570722,6.0,85.304,85.209,117.6]
[1645999570920,32.22845204,85.304,85.211,117.6]
[1645999571120,16.92,85.3,85.213,117.6]
[1645999571320,6.0,85.299,85.214,147.3892]
[1645999572924,22.5634,85.298,85.214,141.3892]
[1645999573122,6.0,85.297,85.215,6.0]
[1645999573722,6.0,85.297,85.214,141.3892]
[1645999574122,30.43863079,85.297,85.214,23.7892]
[1645999574422,1.62104081,85.295,85.214,23.7892]
[1645999574623,6.0,85.294,85.214,23.7892]
[1645999574822,55.16089691,85.294,85.214,23.7892]
[1645999575021,26.48185022,85.293,85.214,23.7892]
[1645999575222,7.69304951,85.292,85.214,23.7892]
[1645999575422,55.16089691,85.292,85.214,23.7892]
[1645999575623,1.37229646,85.291,85.214,23.7892]
[1645999575826,7.82345165,85.29,85.214,23.7892]
[1645999576325,6.0,85.29,85.215,117.6]
[1645999576624,22.5634,85.298,85.215,126.34678921]
[1645999576926,22.5634,85.298,85.216,2.74678921]
[1645999577123,6.0,85.297,85.218,117.6]
[1645999577323,6.0,85.297,85.222,117.6]
[1645999577523,6.0,85.297,85.224,117.6]
[1645999577724,6.0,85.297,85.221,28.23037293]
[1645999578723,30.43863079,85.297,85.222,117.6]
[1645999578925,6.0,85.297,85.224,117.6]
[1645999579124,6.0,85.297,85.226,117.6]
[1645999579325,6.0,85.297,85.228,117.6]
[1645999579525,22.5634,85.298,85.23,117.6]
[1645999579726,22.5634,85.298,85.232,117.6]
[1645999579926,22.5634,85.298,85.235,32.60618763]
[1645999580129,22.5634,85.298,85.236,6.0]
[1645999580526,6.0,85.297,85.236,6.0]
[1645999581132,24.72226612,85.325,85.238,2.74752461]
[1645999581328,24.72226612,85.325,85.237,117.6]
[1645999581329,24.72226612,85.325,85.241,2.95167076]
[1645999581530,22.8338,85.328,85.243,117.6]
[1645999581729,17.6956,85.329,85.244,2.6530895]
[1645999581928,22.8338,85.349,85.247,2.44139268]
[1645999582128,22.8338,85.349,85.251,117.6]
[1645999582332,22.8338,85.349,85.253,117.6]
[1645999582531,22.8338,85.349,85.255,117.6]
[1645999582730,22.8338,85.349,85.257,117.6]
[1645999582932,22.8338,85.349,85.26,2.26964475]
[1645999583132,22.8338,85.349,85.262,117.6]
[1645999583331,22.8338,85.349,85.264,117.6]
[1645999583532,22.8338,85.349,85.266,117.6]
[1645999583834,22.8338,85.349,85.268,117.6]
[1645999584031,22.8338,85.349,85.27,117.6]
[1645999584232,22.8338,85.349,85.272,117.6]
[1645999584433,22.8338,85.349,85.274,117.6]
[1645999584636,22.8338,85.349,85.276,117.6]
[1645999584836,22.8338,85.349,85.278,117.6]
[1645999585036,22.8338,85.349,85.28,117.6]
[1645999585235,22.8338,85.349,85.282,117.6]
[1645999585437,22.8338,85.349,85.284,117.6]
[1645999585637,22.8338,85.349,85.285,6.0]
[1645999585835,6.0,85.348,85.278,23.0602]
[1645999586235,6.0,85.348,85.279,6.0]
[1645999586637,22.8338,85.349,85.28,117.6]
[1645999586835,22.8338,85.349,85.282,117.6]
[1645999587037,16.33527433,85.369,85.284,117.6]
[1645999587237,2.74678921,85.382,85.287,2.53760514]
[1645999587439,24.62940694,85.402,85.291,95.0]
[1645999587640,24.62940694,85.402,85.3,16.92]
[1645999587839,117.6,85.464,85.3,16.92]
[1645999587840,268.61781689,85.51,85.304,5.0]
[1645999588140,1.82284858,85.463,85.324,5.0]
[1645999588339,1.82284858,85.463,85.331,117.6]
[1645999588538,1.82284858,85.463,85.335,188.17]
[1645999588738,1.74944824,85.489,85.337,120.52418235]
[1645999588942,35.70284408,85.462,85.351,117.6]
[1645999589238,35.70284408,85.462,85.353,136.2042206]
[1645999589438,35.70284408,85.462,85.355,117.6]
[1645999589637,35.70284408,85.462,85.354,6.0]
[1645999589638,35.70284408,85.462,85.372,25.75814747]
[1645999589840,35.70284408,85.462,85.381,117.6]
[1645999590039,35.70284408,85.462,85.382,9.09580326]
[1645999590241,35.70284408,85.462,85.383,117.6]
[1645999590442,35.70284408,85.462,85.385,117.6]
[1645999590641,35.70284408,85.462,85.39,16.92]
[1645999590839,35.70284408,85.462,85.392,2.32894466]
[1645999591040,35.70284408,85.462,85.393,6.0]
[1645999591843,35.70284408,85.462,85.391,6.0]
[1645999592243,35.70284408,85.462,85.391,123.6]
[1645999592444,35.70284408,85.462,85.392,2.34627561]
[1645999592644,35.70284408,85.462,85.393,6.0]
[1645999592844,35.70284408,85.462,85.393,8.74678921]
[1645999593447,1.73172571,85.498,85.393,8.74678921]
[1645999593647,47.8716,85.499,85.395,2.39534554]
[1645999593847,47.8716,85.499,85.397,117.6]
[1645999594049,47.8716,85.499,85.401,117.6]
[1645999594247,47.8716,85.499,85.402,8.90382789]
[1645999594448,31.23791655,85.498,85.403,25.75814747]
[1645999594650,1.52752936,85.497,85.404,6.0]
[1645999594849,4.681,85.496,85.404,6.0]
[1645999595049,7.42965591,85.495,85.404,6.0]
[1645999595451,4.681,85.494,85.404,6.0]
[1645999595653,6.0,85.493,85.404,6.0]
[1645999595853,7.73321399,85.493,85.404,6.0]
[1645999596052,16.92,85.49,85.39,6.0]
[1645999596252,10.681,85.489,85.39,6.0]
[1645999596452,118.95080826,85.488,85.39,6.0]
[1645999596655,117.6,85.486,85.362,6.0]
[1645999596853,1.47054396,85.484,85.362,6.0]
[1645999597053,28.70378676,85.469,85.363,26.93052338]
[1645999597253,6.0,85.468,85.364,28.696]
[1645999597452,7.85742805,85.468,85.364,28.696]
[1645999597653,7.85742805,85.468,85.365,2.74678921]
[1645999597854,7.85742805,85.468,85.368,2.38849701]
[1645999598154,1.85742805,85.468,85.37,134.52]
[1645999598355,1.85742805,85.468,85.371,6.0]
[1645999598555,1.85742805,85.468,85.371,8.74678921]
[1645999598760,1.59161818,85.466,85.371,6.0]
[1645999598956,1.3605152,85.459,85.365,6.0]
[1645999599158,1.47864662,85.457,85.365,6.0]
[1645999599355,16.60444364,85.455,85.365,6.0]
[1645999599557,6.0,85.454,85.366,2.74678921]
[1645999599756,16.92,85.45,85.367,6.0]
[1645999599957,117.6,85.448,85.367,6.0]
[1645999600158,6.4091278,85.447,85.367,6.0]
[1645999600358,7.73599658,85.446,85.334,2.74678921]
[1645999600560,1.67086624,85.444,85.313,22.6364]
[1645999600759,1.76839546,85.429,85.314,120.47592569]
[1645999600964,1.78025417,85.427,85.315,2.32176598]
[1645999601166,28.71375503,85.425,85.317,117.6]
[1645999601367,7.53630598,85.424,85.318,2.73507549]
[1645999601566,6.0,85.424,85.318,2.73507549]
[1645999601769,6.0,85.424,85.322,2.98811621]
[1645999601967,6.0,85.424,85.325,3.06494114]
[1645999602268,26.84318829,85.425,85.33,16.92]
[1645999602466,26.84318829,85.425,85.331,123.6]
[1645999602667,26.84318829,85.425,85.332,2.6517597]
[1645999602885,26.84318829,85.425,85.352,28.61967767]
[1645999603086,26.84318829,85.425,85.354,2.82964296]
[1645999603286,46.9148,85.457,85.356,117.6]
[1645999603489,46.9148,85.457,85.355,6.0]
[1645999603490,46.9148,85.457,85.359,2.73914582]
[1645999603685,46.9148,85.457,85.362,2.31640162]
[1645999603885,1.69383012,85.489,85.372,3.09374472]
[1645999604087,46.0388,85.488,85.381,117.6]
[1645999604288,28.35407681,85.487,85.385,117.6]
[1645999604485,28.35407681,85.487,85.388,2.56288139]
[1645999604691,6.0,85.486,85.391,2.34644759]
[1645999604888,6.0,85.486,85.393,117.6]
[1645999605086,6.0,85.486,85.392,6.0]
[1645999605087,7.49101096,85.486,85.394,6.0]
[1645999605286,1.86108547,85.485,85.392,6.0]
[1645999605487,6.0,85.484,85.392,6.0]
[1645999605688,6.0,85.484,85.387,6.0]
[1645999606288,117.6,85.483,85.387,6.0]
[1645999606490,6.0,85.482,85.387,6.0]
[1645999606895,1.41308829,85.48,85.387,6.0]
[1645999607093,7.60923602,85.479,85.387,6.0]
[1645999607291,6.31785652,85.478,85.387,6.0]
[1645999607491,7.62599947,85.477,85.387,6.0]
[1645999607793,1.58794697,85.475,85.35,16.92]
[1645999607990,117.6,85.459,85.307,2.7810189]
[1645999608193,117.6,85.439,85.321,28.8684]
[1645999608390,117.6,85.429,85.31,2.85537261]
[1645999608591,70.2847338,85.428,85.312,117.6]
[1645999608791,16.92,85.42,85.313,2.82096632]
[1645999608994,7.63712325,85.419,85.313,2.82096632]
[1645999609394,7.63712325,85.419,85.315,117.6]
[1645999609593,7.63712325,85.419,85.318,2.65795922]
[1645999609793,7.63712325,85.419,85.321,2.80261455]
[1645999609993,7.63712325,85.419,85.325,117.6]
[1645999610193,7.63712325,85.419,85.327,117.6]
[1645999610393,6.0,85.419,85.33,2.85952376]
[1645999610593,6.0,85.419,85.328,6.0]
[1645999610594,6.0,85.419,85.333,3.10059854]
[1645999610793,6.0,85.419,85.334,6.0]
[1645999611193,6.0,85.419,85.335,2.74678921]
[1645999611394,6.0,85.419,85.337,31.53512637]
[1645999611693,6.0,85.419,85.338,8.97049562]
[1645999612094,16.92,85.42,85.338,8.97049562]
[1645999612594,6.0,85.419,85.338,2.97049562]
[1645999612794,6.0,85.419,85.339,6.0]
[1645999613096,7.48090407,85.419,85.339,6.0]
[1645999613394,7.48090407,85.419,85.339,117.6]
[1645999613593,7.48090407,85.419,85.341,117.6]
[1645999613796,7.48090407,85.419,85.343,117.6]
[1645999613993,7.48090407,85.419,85.344,6.0]
[1645999614396,2.74678921,85.418,85.337,31.53512637]
[1645999614596,6.0,85.417,85.337,31.53512637]
[1645999614996,2.74678921,85.416,85.337,31.53512637]
[1645999615195,28.35407681,85.414,85.337,31.53512637]
[1645999615395,7.71227054,85.413,85.337,31.53512637]
[1645999615698,10.45905975,85.413,85.337,31.53512637]
[1645999615894,2.74678921,85.412,85.337,31.53512637]
[1645999616094,6.0,85.411,85.337,31.53512637]
[1645999616294,1.46365642,85.412,85.337,31.53512637]
[1645999616497,6.0,85.411,85.337,31.53512637]
[1645999616694,6.0,85.411,85.316,4.684]
[1645999616695,123.6,85.411,85.316,4.684]
[1645999616895,123.6,85.411,85.28,4.684]
[1645999616896,1.84220513,85.398,85.28,4.684]
[1645999617098,4.687,85.397,85.27,112.6]
[1645999617295,1.64587676,85.395,85.252,4.687]
[1645999617494,117.6,85.379,85.256,2.92908384]
[1645999617696,29.87830437,85.369,85.257,39.02299417]
[1645999617895,16.92,85.36,85.257,39.02299417]
[1645999618097,6.0,85.359,85.258,8.61439726]
[1645999618294,117.6,85.358,85.259,4.688]
[1645999618495,117.6,85.358,85.257,34.33499417]
[1645999618496,117.6,85.354,85.257,34.33499417]
[1645999618696,28.35407681,85.339,85.257,34.33499417]
[1645999618896,6.0,85.338,85.257,34.33499417]
[1645999619097,7.53710192,85.338,85.257,34.33499417]
[1645999620199,7.53710192,85.338,85.258,6.0]
[1645999620997,28.35407681,85.339,85.259,117.6]
[1645999621199,28.35407681,85.339,85.261,117.6]
[1645999621399,24.518,85.352,85.264,2.99701358]
[1645999621602,16.92,85.36,85.267,2.54109916]
[1645999621801,16.92,85.38,85.269,117.6]
[1645999622001,1.73242556,85.369,85.272,2.97326622]
[1645999622202,1.51969156,85.369,85.274,117.6]
[1645999622401,1.79059281,85.379,85.276,117.6]
[1645999622600,27.27848921,85.389,85.275,23.4087316]
[1645999622601,23.3835,85.388,85.278,117.6]
[1645999622802,23.3835,85.388,85.281,2.9540531]
[1645999623001,23.3835,85.388,85.283,117.6]
[1645999623200,23.3835,85.388,85.279,26.25648921]
[1645999623201,23.3835,85.388,85.285,117.6]
[1645999623403,28.96782219,85.387,85.289,117.6]
[1645999623600,28.96782219,85.387,85.292,2.39747885]
[1645999623802,28.96782219,85.387,85.295,2.54354662]
[1645999624101,28.96782219,85.387,85.298,2.54115354]
[1645999624401,28.96782219,85.387,85.3,117.6]
[1645999624601,28.96782219,85.387,85.302,117.6]
[1645999624803,28.96782219,85.387,85.304,117.6]
[1645999625004,28.96782219,85.387,85.306,117.6]
[1645999625205,28.96782219,85.387,85.308,117.6]
[1645999625404,28.96782219,85.387,85.305,8.74678921]
[1645999625405,28.96782219,85.387,85.311,2.83971109]
[1645999625604,28.96782219,85.387,85.315,117.6]
[1645999625805,28.96782219,85.387,85.316,6.0]
[1645999626403,2.74678921,85.386,85.315,6.0]
[1645999626804,4.10144003,85.386,85.315,6.0]
[1645999627006,14.08,85.38,85.28,26.73629444]
[1645999627207,6.0,85.379,85.28,26.73629444]
[1645999627408,31.70571303,85.379,85.28,26.73629444]
[1645999627606,1.74336997,85.378,85.28,26.73629444]
[1645999627808,7.43115646,85.377,85.28,24.4027]
[1645999628007,10.17794567,85.377,85.281,33.1245167]
[1645999628207,119.24274292,85.376,85.281,33.1245167]
[1645999628410,117.6,85.372,85.281,33.1245167]
[1645999628607,14.08,85.36,85.281,33.1245167]
[1645999628809,28.96782219,85.358,85.281,33.1245167]
[1645999629108,1.68492277,85.356,85.246,22.9919]
[1645999629307,1.68492277,85.356,85.21,31.6763]
[1645999629308,117.6,85.354,85.247,6.0]
[1645999629508,14.08,85.34,85.243,6.0]
[1645999629708,14.08,85.33,85.23,6.0]
[1645999629912,30.3984,85.329,85.232,117.6]
[1645999630207,33.14518921,85.329,85.235,2.391523]
[1645999630409,33.14518921,85.329,85.238,2.50114712]
[1645999630609,2.74678921,85.328,85.241,2.78394259]
[1645999630810,2.74678921,85.328,85.242,6.0]
[1645999630811,117.6,85.326,85.242,6.0]
[1645999631009,117.6,85.322,85.236,6.0]
[1645999631208,14.08,85.31,85.236,6.0]
[1645999631408,14.47980974,85.308,85.232,6.0]
[1645999631609,7.35725432,85.307,85.232,6.0]
[1645999631814,10.10404353,85.307,85.232,6.0]
[1645999632012,2.74678921,85.306,85.232,6.0]
[1645999632211,6.0,85.305,85.232,6.0]
[1645999632813,117.6,85.304,85.232,6.0]
[1645999633016,14.08,85.3,85.232,6.0]
[1645999633216,6.0,85.299,85.232,6.0]
[1645999633416,16.8882096,85.299,85.232,6.0]
[1645999633616,1.81349996,85.298,85.232,6.0]
[1645999633823,6.0,85.297,85.232,6.0]
[1645999634023,117.6,85.296,85.231,26.19387491]
[1645999634223,146.56782219,85.294,85.231,26.19387491]
[1645999634424,14.08,85.29,85.231,26.19387491]
[1645999634623,1.41021931,85.288,85.231,26.19387491]
[1645999635029,14.08,85.29,85.231,26.19387491]
[1645999635623,1.65427406,85.289,85.222,17.4812]
[1645999636126,1.75637748,85.286,85.222,17.4812]
[1645999636541,1.36423437,85.283,85.178,2.49960201]
[1645999636743,8.74678921,85.285,85.178,2.49960201]
[1645999636744,15.8684125,85.28,85.189,30.04543276]
[1645999637044,7.75205274,85.279,85.19,6.0]
[1645999638447,2.74678921,85.278,85.19,6.0]
[1645999638747,6.0,85.277,85.19,6.0]
[1645999639149,6.0,85.277,85.19,8.45111311]
[1645999640151,2.74678921,85.276,85.19,8.45111311]
[1645999640350,6.0,85.275,85.19,8.45111311]
[1645999642151,6.0,85.275,85.191,117.6]
[1645999642351,6.0,85.275,85.193,117.6]
[1645999642553,6.0,85.275,85.194,6.0]
[1645999643451,6.0,85.275,85.191,6.0]
[1645999644859,6.0,85.275,85.192,117.6]
[1645999645059,6.0,85.275,85.193,6.0]
[1645999645261,6.0,85.275,85.191,6.0]
[1645999646561,2.74678921,85.274,85.191,6.0]
[1645999646761,6.0,85.273,85.191,6.0]
[1645999646959,14.08,85.27,85.19,6.0]
[1645999647159,12.49521873,85.269,85.19,6.0]
[1645999647359,7.80321873,85.269,85.19,6.0]
[1645999647560,8.74678921,85.269,85.191,117.6]
[1645999647783,22.7486,85.289,85.193,117.6]
[1645999647961,22.7486,85.289,85.195,117.6]
[1645999648162,22.7486,85.289,85.197,117.6]
[1645999648462,23.532,85.306,85.213,117.6]
[1645999648661,23.532,85.306,85.216,2.31720189]
[1645999648865,23.532,85.306,85.219,2.29081588]
[1645999649066,23.532,85.306,85.222,2.26339379]
[1645999649263,23.532,85.306,85.226,117.6]
[1645999649464,23.532,85.306,85.227,6.0]
[1645999650466,14.42583672,85.28,85.227,6.0]
[1645999651465,14.42583672,85.28,85.228,4.691]
[1645999651665,23.532,85.306,85.228,4.691]
[1645999651666,23.532,85.306,85.231,2.78107846]
[1645999651866,23.532,85.306,85.232,10.691]
[1645999652366,23.532,85.306,85.233,117.6]
[1645999652565,23.532,85.306,85.234,8.9573888]
[1645999652766,33.4961416,85.305,85.234,2.9573888]
[1645999652969,33.4961416,85.305,85.235,6.0]
[1645999653366,33.4961416,85.305,85.23,6.0]
[1645999653570,33.4961416,85.305,85.231,122.291]
[1645999653771,33.4961416,85.305,85.233,117.6]
[1645999653972,33.4961416,85.305,85.235,117.6]
[1645999654170,33.4961416,85.305,85.237,117.6]
[1645999654371,33.4961416,85.305,85.239,117.6]
[1645999654574,33.4961416,85.305,85.241,117.6]
[1645999654772,129.95517282,85.329,85.243,117.6]
[1645999654977,129.95517282,85.329,85.245,117.6]
[1645999655173,129.95517282,85.329,85.247,117.6]
[1645999655399,47.2993,85.349,85.249,117.6]
[1645999655599,47.2993,85.349,85.251,117.6]
[1645999655797,35.49826316,85.348,85.253,117.6]
[1645999655996,35.49826316,85.348,85.254,8.78075185]
[1645999655997,1.74267764,85.347,85.254,8.78075185]
[1645999656197,6.0,85.346,85.254,8.78075185]
[1645999656697,7.85911149,85.346,85.255,24.9722]
[1645999656899,24.26714731,85.345,85.256,13.30748402]
[1645999657097,24.26714731,85.345,85.256,8.61848402]
[1645999658100,2.74678921,85.344,85.256,8.61848402]
[1645999658299,2.74678921,85.344,85.257,4.689]
[1645999658498,27.01393652,85.344,85.258,6.0]
[1645999658900,27.01393652,85.344,85.257,6.0]
[1645999659299,27.01393652,85.344,85.258,4.689]
[1645999659497,27.01393652,85.344,85.259,6.0]
[1645999659699,117.6,85.343,85.259,6.0]
[1645999659897,117.6,85.341,85.256,10.689]
[1645999660098,7.37395387,85.34,85.256,10.689]
[1645999660597,7.37395387,85.34,85.256,6.0]
[1645999660802,1.81552987,85.339,85.256,6.0]
[1645999661001,6.0,85.338,85.256,6.0]
[1645999662599,1.74886466,85.337,85.256,6.0]
[1645999662802,6.0,85.336,85.256,6.0]
[1645999663100,7.89539575,85.335,85.256,6.0]
[1645999667303,7.89539575,85.335,85.257,117.6]
[1645999667502,7.89539575,85.335,85.259,117.6]
[1645999667710,7.89539575,85.335,85.261,117.6]
[1645999668004,7.89539575,85.335,85.262,6.0]
[1645999668407,7.89539575,85.335,85.263,4.689]
[1645999668603,7.89539575,85.335,85.265,14.37090833]
[1645999668912,7.89539575,85.335,85.266,13.60145139]
[1645999669103,7.89539575,85.335,85.267,117.6]
[1645999669304,24.26714731,85.352,85.269,117.6]
[1645999669606,4.688,85.392,85.275,188.17]
[1645999669802,4.688,85.392,85.27,76.98793259]
[1645999669803,46.4872,85.399,85.277,117.6]
[1645999670004,1.46814616,85.398,85.292,2.73137882]
[1645999670205,22.56049238,85.392,85.294,32.19735762]
[1645999670407,6.23076513,85.391,85.294,29.277357]
[1645999670607,119.14915178,85.389,85.294,29.277357]
[1645999670909,1.63202632,85.386,85.294,29.277357]
[1645999671107,117.6,85.384,85.294,29.277357]
[1645999671407,1.80965076,85.378,85.272,2.99416198]
[1645999671607,1.84092896,85.375,85.267,24.0582]
[1645999671807,1.78448536,85.372,85.267,24.0582]
[1645999672005,119.01237104,85.359,85.267,24.0582]
[1645999672206,1.57061926,85.356,85.272,6.0]
[1645999672506,1.57768543,85.354,85.267,24.0582]
[1645999672706,117.6,85.349,85.267,24.0582]
[1645999672906,14.08,85.35,85.266,28.9514157]
[1645999672907,117.6,85.347,85.266,28.9514157]
[1645999673108,117.6,85.345,85.266,28.9514157]
[1645999673306,117.6,85.341,85.266,28.9514157]
[1645999673510,7.85473232,85.34,85.266,28.9514157]
[1645999675208,1.38475822,85.338,85.244,24.0092]
[1645999675406,1.50600254,85.335,85.244,24.0092]
[1645999675605,117.6,85.319,85.221,2.41627911]
[1645999675806,1.4491751,85.316,85.222,6.0]
[1645999676012,1.857259,85.313,85.222,6.0]
[1645999676207,1.86487683,85.31,85.223,28.95721166]
[1645999676407,6.0,85.309,85.224,6.0]
[1645999679113,6.0,85.309,85.223,28.95721166]
[1645999679914,6.0,85.309,85.223,146.55721166]
[1645999680316,6.0,85.309,85.224,6.0]
[1645999681816,117.6,85.308,85.224,6.0]
[1645999682018,117.6,85.306,85.207,2.92358111]
[1645999682215,1.68585826,85.305,85.207,2.92358111]
[1645999682416,117.6,85.303,85.207,2.92358111]
[1645999682615,10.691,85.304,85.201,117.6]
[1645999682616,117.6,85.301,85.201,117.6]
[1645999682818,117.6,85.299,85.201,117.6]
[1645999683016,117.6,85.297,85.203,117.6]
[1645999683217,1.72503016,85.294,85.204,6.0]
[1645999683418,1.7595369,85.291,85.204,6.0]
[1645999683621,6.0,85.29,85.204,6.0]
[1645999684018,1.68720536,85.288,85.204,6.0]
[1645999684219,28.45734536,85.286,85.204,6.0]
[1645999684423,6.0,85.285,85.205,117.6]
[1645999684621,6.0,85.285,85.207,117.6]
[1645999684828,28.45734536,85.286,85.209,117.6]
[1645999685023,28.45734536,85.286,85.208,9.04205436]
[1645999685024,28.45734536,85.286,85.211,117.6]
[1645999685220,28.45734536,85.286,85.21,8.92548784]
[1645999685221,28.45734536,85.286,85.213,117.6]
[1645999685521,28.45734536,85.286,85.216,19.60091402]
[1645999685722,28.45734536,85.286,85.217,8.90979725]
[1645999686422,28.45734536,85.286,85.217,6.0]
[1645999686621,6.0,85.285,85.203,123.6]
[1645999687424,6.0,85.285,85.204,27.97061499]
[1645999687625,6.0,85.285,85.205,6.0]
[1645999700858,4.692,85.284,85.204,2.686854]
[1645999701262,58.90568509,85.283,85.204,2.686854]
[1645999701458,6.0,85.282,85.204,2.686854]
[1645999701658,16.9,85.28,85.204,2.686854]
[1645999701859,6.0,85.279,85.204,2.686854]
[1645999702157,48.21080365,85.279,85.204,2.686854]
[1645999702358,26.81058921,85.278,85.204,2.686854]
[1645999702560,6.0,85.277,85.204,2.686854]
[1645999702759,47.7968859,85.277,85.204,2.686854]
[1645999702957,58.90568509,85.277,85.204,2.686854]
[1645999703158,2.74678921,85.276,85.205,6.0]
[1645999703359,6.0,85.275,85.205,6.0]
[1645999703758,14.93631355,85.273,85.205,6.0]